Cogmind - Beta 10 @@@ ROGUE MODE // 2020.09.12 @ 18:23:45 Player: Torako Result: Destroyed by as-56035 with Assembled F-torch Performance ------------- Evolutions (1) 500 Regions Visited (5) 1000 Robots Destroyed (38) 190 Value Destroyed (658) 658 Prototype IDs (24) 480 Alien Tech Used (0) 0 Bonus (18) 18 TOTAL SCORE: 2846 Bonus ------- Aligned with FarCom 300 Friendly Fire -282 Cogmind --------- Core Integrity 0/400 Matter 300/300 Energy 95/100 System Corruption 0% Temperature Cool (20) Movement Walking (85) Ox1 Location -9/Exiles Parts ------- > --- POWER (1) -------- (None) > --- PROPULSION (2) --- Potential Leg Potential Leg > --- UTILITY (3) ------ High-capacity Storage Unit High-capacity Storage Unit High-capacity Storage Unit > --- WEAPON (3) ------- Katana Scythe > --- INVENTORY (28) --- Wheel Improved Heat Sink Cooling System High-capacity Storage Unit High-capacity Storage Unit High-capacity Storage Unit High-capacity Storage Unit High-capacity Storage Unit Compact Matter Pod (150) Improved Light Armor Plating Improved Light Armor Plating Long-range Tractor Beam Sensor Drone Bay Shock Rifle Improved Medium Laser EM Pulse Cannon Minigun High-powered Shotgun AWS/Autocannon Peak State ------------ > --- POWER ------------ Light Deuterium Engine > --- PROPULSION ------- Potential Leg Potential Leg > --- UTILITY ---------- High-capacity Storage Unit High-capacity Storage Unit High-capacity Storage Unit > --- WEAPON ----------- Katana Scythe > --- INVENTORY -------- Nuclear Core Wheel Improved Heat Sink Cooling System High-capacity Storage Unit High-capacity Storage Unit High-capacity Storage Unit High-capacity Storage Unit High-capacity Storage Unit Compact Matter Pod Improved Light Armor Plating Improved Light Armor Plating Long-range Tractor Beam Sensor Drone Bay Shock Rifle Improved Medium Laser EM Pulse Cannon Minigun High-powered Shotgun AWS/Autocannon [Rating: 39] Favorites ----------- Power Light Angular Momentum Engine Engine Light Angular Momentum Engine Power Core Nuclear Core Propulsion Advanced Treads Treads Advanced Treads Leg Potential Leg Wheel Compact Wheel Utility High-capacity Storage Unit Storage High-capacity Storage Unit Weapon Shock Rifle Energy Gun Shock Rifle Energy Cannon EM Pulse Cannon Ballistic Gun Assault Rifle Launcher Rocket Launcher Slashing Weapon Scythe Build | -11 -10 -10 -9 -9 -9 ------- Run | Scr Mat Min Mat Min Exi Slots Evolved 2 | . . . 2 . . Power . | . . . . . . Propulsion . | . . . . . . Utility 1 | . . . 1 . . Weapon 1 | . . . 1 . . Parts Attached 40 | 6 5 5 12 2 10 Power 8 | 1 1 1 2 1 2 Engine 6 | 1 1 1 1 1 1 Core 2 | . . . 1 . 1 Reactor . | . . . . . . Propulsion 10 | 2 1 1 2 . 4 Treads 6 | . 1 1 2 . 2 Leg 2 | . . . . . 2 Wheel 2 | 2 . . . . . Hover . | . . . . . . Flight . | . . . . . . Utility 4 | 1 2 . 1 . . Device . | . . . . . . Storage 4 | 1 2 . 1 . . Processor . | . . . . . . Hackware . | . . . . . . Protection . | . . . . . . Artifact . | . . . . . . Weapon 18 | 2 1 3 7 1 4 Energy Gun 10 | . 1 2 6 . 1 Energy Cannon 1 | . . . . 1 . Ballistic Gun 4 | 2 . 1 1 . . Ballistic Cannon . | . . . . . . Launcher 1 | . . . . . 1 Special Weapon . | . . . . . . Impact Weapon . | . . . . . . Slashing Weapon 2 | . . . . . 2 Piercing Weapon . | . . . . . . Special Melee Weapon . | . . . . . . Unidentified Prototypes 1 | . . . 1 . . Parts Lost 19 | . 3 5 2 . 9 Power 5 | . 1 1 . . 3 Propulsion 6 | . 1 1 . . 4 Utility . | . . . . . . Weapon 8 | . 1 3 2 . 2 Highest Loss Streak 9 | . 3 3 1 . 9 Average Slot Usage (%) 98 | . 97 98 96 99 98 Engine 7 | . 14 13 2 4 10 Core 3 | . . . 8 6 . Treads 19 | . 3 26 22 22 20 Wheel 3 | . 24 1 . . . Storage 31 | . 25 28 33 33 33 Energy Gun 17 | . 3 25 20 22 11 Energy Cannon 6 | . . . . 10 8 Ballistic Gun 4 | . 24 2 8 . . Slashing Weapon 2 | . . . . . 10 Naked Turns . | . . . . . . Heaviest Build 117 | 11 72 75 112 117 117 Greatest Support 60 | 16 26 40 44 44 60 Greatest Overweight (x) 4 | 1 4 1 2 2 2 Average Overweight (x) 1 | . 1 1 2 2 1 Largest Inventory Capacity 28 | 6 20 20 28 28 28 Average Capacity 25 | 5 17 20 28 28 28 Most Carried 28 | 6 12 20 28 28 28 Average Carried 22 | 3 9 13 26 27 24 Final Capacity 28 | 6 20 20 28 28 28 Final Carried 28 | 6 10 19 28 26 21 Class Distribution -------------------- 59% | Hauler-Mutant 37% | Hauler-Gunner 3% | Mutant Dominant Class ---------------- Hauler-Mutant | -10/Materials Hauler-Mutant | -10/Mines Hauler-Gunner | -9/Materials Hauler-Gunner | -9/Mines Hauler-Mutant | -9/Exiles Resources | -11 -10 -10 -9 -9 -9 ----------- Run | Scr Mat Min Mat Min Exi Matter Collected 908 | 240 201 92 287 28 60 Remotely . | . . . . . . Salvage Created 1000 | . 271 131 380 178 40 Parts 55 | . 22 5 23 5 . Haulers Intercepted . | . . . . . . Recyclers Shooed . | . . . . . . Parts Field Recycled . | . . . . . . Retrieved Matter . | . . . . . . Parts Self-Destructed . | . . . . . . Prevented . | . . . . . . Kills | -11 -10 -10 -9 -9 -9 ------- Run | Scr Mat Min Mat Min Exi Combat Hostiles Destroyed 34 | . 9 3 12 8 2 Melee 3 | . . . . 1 2 Guns 30 | . 9 3 12 6 . Cannons 1 | . . . . 1 . Classes Destroyed 6 | . 4 . . 2 . Worker 2 | . 1 . 1 . . Watcher 2 | . 1 . 1 . . Swarmer 13 | . 6 . 7 . . Grunt 12 | . 3 3 5 1 . Duelist 1 | . . . . 1 . Assembled 8 | . . . . 6 2 Best Kill Streak 6 | . 4 2 6 2 2 Combat Bots Only 5 | . 3 2 5 2 2 Max Kills in Single Turn 2 | . 1 1 2 1 1 Gunslinging 1 | . . . 1 . . Exploded . | . . . . . . Melee 1 | . . . . 1 1 Uniques/NPCs Destroyed . | . . . . . . Combat | -11 -10 -10 -9 -9 -9 -------- Run | Scr Mat Min Mat Min Exi Damage Taken 3141 | . 381 534 343 148 1735 Core 520 | . 66 51 32 15 356 Absorbed by Shields . | . . . . . . Core Remaining (%) 76 | 100 . 53 . . . Volleys Fired 88 | . 28 25 18 17 . Largest 3 | . 2 2 3 3 . Hottest 163 | . 76 81 150 163 . Shots Fired 194 | . 56 39 52 47 . Gun 181 | . 56 39 52 34 . Cannon 13 | . . . . 13 . Launcher . | . . . . . . Special . | . . . . . . Kinetic 78 | . 53 15 10 . . Thermal 31 | . 3 24 4 . . Explosive . | . . . . . . Electromagnetic 85 | . . . 38 47 . Robot Hit Streak 12 | . 12 7 7 4 . Robot Miss Streak 7 | . 3 3 3 7 . Penetration Max . | . . . . . . Secondary Targets 9 | . 3 1 5 . . Max Gunslinging Chain 1 | . 1 1 1 . . Shots Hit Robots 135 | . 37 26 31 23 18 Core Hits 51 | . 15 7 16 11 2 Critical Hits . | . . . . . . Critical Kills . | . . . . . . Critical Parts Destroyed . | . . . . . . Melee Attacks 28 | . . . . . 28 Impact . | . . . . . . Slashing 28 | . . . . . 28 Piercing . | . . . . . . Sneak Attacks 1 | . . . . . 1 Combat Hostiles . | . . . . . . Follow-up Attacks 4 | . . . . . 4 Damage Inflicted 2290 | . 495 369 499 286 641 Guns 1600 | . 495 369 485 251 . Cannons 21 | . . . . 21 . Explosions . | . . . . . . Melee 641 | . . . . . 641 Ramming 28 | . . . 14 14 . Kinetic 707 | . 448 111 148 . . Thermal 335 | . 47 258 30 . . Explosive . | . . . . . . Electromagnetic 579 | . . . 307 272 . Impact . | . . . . . . Slashing 641 | . . . . . 641 Piercing . | . . . . . . Highest Corruption . | . . . . . . Average Corruption . | . . . . . . Corruption Purged . | . . . . . . Overload Shots . | . . . . . . Overflow Damage 45 | . . . . . 45 Projectiles . | . . . . . . Explosions . | . . . . . . Melee 45 | . . . . . 45 Knockbacks . | . . . . . . Impact . | . . . . . . Kinetic . | . . . . . . Secondary . | . . . . . . Self-Inflicted Damage . | . . . . . . Shots . | . . . . . . Rammed 2 | . . . 1 1 . Targets Rammed 2 | . . . 1 1 . Kicked . | . . . . . . Crushed . | . . . . . . Highest Temperature 567 | . 42 280 567 303 1 Average Temperature 149 | . 16 137 210 131 1 Received Heat Transfer 957 | . 87 300 72 58 440 Effects 6 | . . . 6 . . Shutdowns 2 | . . . 2 . . Energy Bleed 2 | . . . 2 . . Short Circuit 1 | . . . 1 . . Damage (major) 1 | . . . 1 . . Siege Activations . | . . . . . . Robots Corrupted . | . . . . . . Combat Hostiles . | . . . . . . Parts Fried 4 | . . . 3 1 . Impact Corruptions . | . . . . . . Robots Melted . | . . . . . . Combat Hostiles . | . . . . . . Parts Melted . | . . . . . . Heat Transferred 814 | . 111 629 74 . . Parts Sabotaged . | . . . . . . Parts Stolen . | . . . . . . Parts Stripped . | . . . . . . Power Chain Reactions . | . . . . . . Missiles Intercepted . | . . . . . . Alert | -11 -10 -10 -9 -9 -9 ------- Run | Scr Mat Min Mat Min Exi Peak Influence 289 | . 247 38 289 50 . Initial 33 | . . 18 14 33 . Average 44 | . 79 34 126 17 . Maximum Alert Level 1 | . 1 . 1 . . Low Security (%) 93 | 100 84 100 69 100 . Level 1 6 | . 15 . 30 . . Level 2 . | . . . . . . Level 3 . | . . . . . . Level 4 . | . . . . . . Level 5 . | . . . . . . High Security . | . . . . . . Max Security . | . . . . . . Squads Dispatched 3 | . . 1 2 . . Investigation 2 | . . 1 1 . . Extermination . | . . . . . . Reinforcement 1 | . . . 1 . . Assault . | . . . . . . Garrison . | . . . . . . Intercept . | . . . . . . Construction Impeded . | . . . . . . Haulers Reinforced . | . . . . . . Stealth | -11 -10 -10 -9 -9 -9 --------- Run | Scr Mat Min Mat Min Exi Distress Signals 7 | . 2 . 4 1 . Communications Jammed . | . . . . . . Distress Signals . | . . . . . . Times Spotted 61 | . 16 4 22 13 6 Peak Tracking Total 9 | . 4 2 9 4 9 Tactical Retreats 6 | . 1 1 . 4 . Traps | -11 -10 -10 -9 -9 -9 ------- Run | Scr Mat Min Mat Min Exi Traps Triggered 1 | . . . 1 . . Indirectly . | . . . . . . Trap Hack Attempts . | . . . . . . Triggered . | . . . . . . Disarmed . | . . . . . . Reprogrammed . | . . . . . . Reused 1 | . . . . . 1 Traps Extracted . | . . . . . . Installed 3 | . . . . . 3 Triggered . | . . . . . . Machines | -11 -10 -10 -9 -9 -9 ---------- Run | Scr Mat Min Mat Min Exi Machines Disabled . | . . . . . . Max in Single Turn . | . . . . . . Machines Sabotaged . | . . . . . . Garrisons Compromised . | . . . . . . Overloaded Fab Kills . | . . . . . . Fab Network Shutdowns . | . . . . . . Hacking | -11 -10 -10 -9 -9 -9 --------- Run | Scr Mat Min Mat Min Exi Machines Accessed 10 | . 5 1 . 2 2 Terminals 6 | . 5 . . 1 . Fabricators . | . . . . . . Repair Stations . | . . . . . . Recycling Units . | . . . . . . Scanalyzers . | . . . . . . Garrison Access . | . . . . . . Total Hacks 20 | . 11 1 . 3 5 Successful 14 | . 6 1 . 2 5 Failed 5 | . 4 . . 1 . Catastrophic 2 | . 2 . . . . Database Lockouts 1 | . 1 . . . . Manual 12 | . 9 . . 2 1 Terminals 13 | . 11 . . 2 . Fabricators . | . . . . . . Repair Stations . | . . . . . . Recycling Units . | . . . . . . Scanalyzers . | . . . . . . Garrison Access . | . . . . . . Terminal Hacks 10 | . 3 1 . 1 5 Record 4 | . . . . . 4 Robot Analysis 2 | . 2 . . . . Open Door 2 | . . 1 . 1 . Terminal Index 1 | . 1 . . . . EX-Prototype ID Bank 1 | . . . . . 1 Fabricator Hacks . | . . . . . . Repair Station Hacks . | . . . . . . Recycling Unit Hacks . | . . . . . . Scanalyzer . | . . . . . . Garrison Access Hacks . | . . . . . . Unauthorized Hacks 4 | . 3 . . 1 . Terminals 4 | . 3 . . 1 . Track 1 | . 1 . . . . Botnet 2 | . 1 . . 1 . Disrupt 1 | . 1 . . . . Fabricators . | . . . . . . Repair Stations . | . . . . . . Recycling Units . | . . . . . . Scanalyzers . | . . . . . . Garrison Access . | . . . . . . Data Cores Recovered . | . . . . . . Used . | . . . . . . Hacking Detections 5 | . 4 . . 1 . Full Trace Events . | . . . . . . Feedback Events . | . . . . . . Feedback Blocked . | . . . . . . Robot Schematics Acquired . | . . . . . . Robots Built . | . . . . . . Matter . | . . . . . . Time . | . . . . . . Total Robot Build Rating . | . . . . . . Part Schematics Acquired . | . . . . . . Parts Built . | . . . . . . Matter . | . . . . . . Time . | . . . . . . Total Part Build Rating . | . . . . . . Parts Repaired . | . . . . . . Time . | . . . . . . Parts Recycled . | . . . . . . Recycled Matter . | . . . . . . Retrieved Matter . | . . . . . . Retrieved Components . | . . . . . . Parts Scanalyzed . | . . . . . . Part Schematics Acquired . | . . . . . . Parts Damaged . | . . . . . . Bothacking | -11 -10 -10 -9 -9 -9 ------------ Run | Scr Mat Min Mat Min Exi Used RIF Installer . | . . . . . . Robots Hacked . | . . . . . . Non-combat . | . . . . . . Combat . | . . . . . . Robot Hacks Applied . | . . . . . . Relay Couplers Released . | . . . . . . Robots Rewired . | . . . . . . Allies Hacked . | . . . . . . Hacks Repelled . | . . . . . . Allies | -11 -10 -10 -9 -9 -9 -------- Run | Scr Mat Min Mat Min Exi Total Allies 3 | . . . . 3 . Largest Group 2 | . . . . 2 . Highest-Rated Group 41 | . . . . 41 . Highest-Rated Ally 31 | . . . . 31 . Total Orders . | . . . . . . Ally Attacks 11 | . . . . 11 . Total Damage 85 | . . . . 85 . Kills 4 | . . . . 4 . Allies Corrupted . | . . . . . . Allies Melted . | . . . . . . Intel | -11 -10 -10 -9 -9 -9 ------- Run | Scr Mat Min Mat Min Exi Robot Analysis Total 2 | . 2 . . . . Derelict Logs Recovered 3 | . . 2 . 1 . Drone Launches . | . . . . . . Drone Recoveries . | . . . . . . Exploration | -11 -10 -10 -9 -9 -9 ------------- Run | Scr Mat Min Mat Min Exi Turns Passed 3820 | 53 464 380 443 1743 737 Spaces Moved 1578 | 40 292 162 174 550 360 Core 1 | 1 . . . . . Treads 1283 | . 44 162 174 550 353 Legs 7 | . . . . . 7 Wheels 287 | 39 248 . . . . Hover . | . . . . . . Flight . | . . . . . . Fastest Speed 50 | 50 90 180 185 185 85 Average Speed 169 | 88 122 180 185 185 183 Slowest Speed 220 | 100 220 180 200 185 185 Overloaded Moves 7 | . . . . . 7 Propulsion Burnouts . | . . . . . . Robots Hopped . | . . . . . . Cave-ins Triggered . | . . . . . . Exploration Rate (%) 44 | 2 63 36 27 86 55 Regions Visited 5 Branch Regions 3 Pre-discovered Areas 1 | . . . . . 1 Known Exits Taken . | . . . . . . Unknown Exits Taken 5 | 1 1 1 1 1 . Scrap Searched 1 | . . . . 1 . Spaces Dug . | . . . . . . Terrain Destroyed . | . . . . . . Melee . | . . . . . . Projectile . | . . . . . . AOE . | . . . . . . Terrain Rammed . | . . . . . . Walls Destroyed . | . . . . . . Machines Disabled . | . . . . . . Actions | -11 -10 -10 -9 -9 -9 --------- Run | Scr Mat Min Mat Min Exi Total 2515 | 55 346 212 258 1241 403 Wait 705 | 3 8 8 25 661 . Move 1573 | 39 291 161 173 549 360 Hop . | . . . . . . Pick Up 53 | 7 10 13 16 4 3 Fast Attach 10 | 5 1 1 2 1 . Attach 21 | 1 3 4 5 1 7 Detach 5 | . . . 4 1 . Swap 9 | . 1 . 5 . 3 Drop 22 | . 4 . 9 6 3 Fire 88 | . 28 25 18 17 . Melee 24 | . . . . . 24 Ram . | . . . . . . Kick . | . . . . . . Crush 2 | . . . 1 1 . Escape Stasis . | . . . . . . Rewire . | . . . . . . Trap 3 | . . . . . 3 Miscellaneous . | . . . . . . Route ------- -11/Scrapyard -10/Materials (discovered 2 exits: [*Mat] / *Min) -10/Mines -9/Materials (discovered 3 exits: Mat x2 / *Min) -9/Mines (discovered 3 exits: *Mat x2 / *Exi) -9/Exiles History --------- Turn | Location | Event 23 | -11/Scrapyard | Discovered new exit (range 16) 54 | -11/Scrapyard | Entered Materials 302 | -10/Materials | Discovered new exit (range 3) 386 | -10/Materials | Discovered new exit (range 15) 394 | -10/Materials | Central database locked down 430 | -10/Materials | Build established: Hauler-Mutant 438 | -10/Materials | Lost 3 parts (1p1n1w) 518 | -10/Materials | Entered Mines 581 | -10/Mines | Lost 3 parts (1n2w) 612 | -10/Mines | Found a hidden stash of uninstalled traps 661 | -10/Mines | Learned location of 2 exits from Materials 740 | -10/Mines | Met a Derelict shopkeep closing up shop 814 | -10/Mines | Learned Materials stockpile data 817 | -10/Mines | Discovered new exit (range 9) 898 | -10/Mines | Entered Materials 898 | -9/Materials | Evolved 2 slots: Utility x1, Weapon x1 899 | -9/Materials | Identified exit to Materials 1298 | -9/Materials | Discovered new exit (range 10) 1341 | -9/Materials | Entered Mines 1345 | -9/Mines | Discovered exit to Materials (range 7) 1474 | -9/Mines | Found the Drone Emporium 1498 | -9/Mines | Found Prototype Device 1570 | -9/Mines | Learned Materials trap positions 1622 | -9/Mines | Assembled infested the area 1766 | -9/Mines | Build established: Hauler-Gunner 2644 | -9/Mines | Received a Rocket Launcher from a helpful Derelict 2735 | -9/Mines | Received a Mining Laser from a helpful Derelict 2848 | -9/Mines | Build established: Hauler-Mutant 3023 | -9/Mines | Discovered exit to Materials (range 3) 3077 | -9/Mines | Deemed a non-threat by the Exiles lab entrance 3077 | -9/Mines | Discovered new exit (range 5) 3084 | -9/Mines | Entered Exiles 3131 | -9/Exiles | Met 8R-AWN 3162 | -9/Exiles | Met EX-HEX 3254 | -9/Exiles | Met EX-BIN 3396 | -9/Exiles | Met EX-DEC 3403 | -9/Exiles | Learned location of Zion (-6) 3463 | -9/Exiles | Aligned with FarCom system 3465 | -9/Exiles | Given EX-Vault access code 3510 | -9/Exiles | Opened EX-Vault 3523 | -9/Exiles | Found AWS/Autocannon 3530 | -9/Exiles | Found Potential Leg 3532 | -9/Exiles | Found Potential Leg 3569 | -9/Exiles | Warned to stay clear of 0b10 Research branches 3745 | -9/Exiles | Attacked by the Exiles 3772 | -9/Exiles | Core integrity fell below 50% 3792 | -9/Exiles | Core integrity fell below 20% 3821 | -9/Exiles | Destroyed by as-56035 with Assembled F-torch Last Messages --------------- Penetrated by HV Slug. HV Slug penetrates Wall. Penetrated by HV Slug. HV Slug penetrates Earth. Penetrated by HV Slug. HV Slug penetrates Earth. Penetrated by HV Slug. HV Slug penetrates Earth. Penetrated by HV Slug. HV Slug penetrates Earth. as-50915 misfires. Nuclear Core destroyed. Penetrated by HV Slug. HV Slug penetrates Earth. Penetrated by HV Slug. HV Slug penetrates Earth. Penetrated by HV Slug. HV Slug penetrates Earth. Penetrated by HV Slug. HV Slug penetrates Wall. Map ----- +----------------------------------------------------+ | ""#??????????????????????????????????????????????? | | ""#??????????????????????????????????????????????? | | ""#??????????????????????????????????????????????? | | ""#??????????????????????????????????????????????? | | ""#??????????????????????????????????????????????? | | ""#??????????????????????????????????????????????? | | ""#??????????????????????????????????????????????? | | ""#??????????????????????????????????????????????? | | """??????????????????????????????????????????????? | | ""#??????????????????????????????????????????????? | | """??????????????????????????????????????????????? | | #??????????????????????????????????????????????? | | ""#??????????????????????#???????????????????????? | | ###?????????????????????? ???????????????????????? | | ????????????????????????? ???????????????????????? | | ????????????????????????? ???????????????????????? | | ????????????????????????# #??????????????????????? | | #########???????????????# #?????????????????? ? | | """"""""##??????????????# #?????????????????? ? | | """ """"##?????????????# #?????????????????# #? | | "" " #?????????????# #???????????????## ## | | " """#????????????? #???????????????# # | | " "#???????????###;#???????????????# # | | " "##?##########" ##?????????????## ? | | ""### ; ;#????????????## #?? | | """#??######" @##????????????# #?? | | "#????### a g ###????????### #??? | | ##???# a ########## #??? | | ##?## #""""## #???? | | ##; * ##??? | | ## * #??? | | #### ##?? | | ""#?#"""""#### ### | | #"""##?#######??#### * # | | ######??????????????##### | | ##???????????????????????### | | " ##??????????????????????????### | | """ ^ ^ ^ "#?????????????????????????????### | | ""#" "##??????????????????????????????#" | | """##"""""""##???????????????????????????????#### | | ""###########???????????????????????????????????# | | ###?????????????????????????????????????????????## | | ?????????????????????????????????????????????????# | | ?????????????????????????????????????????????????? | | ?????????????????????????????????????????????????? | | ?????????????????????????????????????????????????? | | ?????????????????????????????????????????????????? | | ?????????????????????????????????????????????????? | | ?????????????????????????????????????????????????? | | ?????????????????????????????????????????????????? | +----------------------------------------------------+ Best States ------------- Heat Dissipation 28 Energy Generation 18 Energy Capacity 250 Matter Stores 300 Matter Capacity 300 Sight Range 16 Terrain Scan Density 10 Evasion (%) 44 Recoil Reduction 2 Item Schematics ----------------- None Robot Schematics ------------------ None Fabricated ------------ Nothing Alien Tech Used ----------------- None Achievements -------------- None Challenges ------------ None Game ------ Seed PotentialStealthDesublimator Manual? 0 Play Time 00:23:37 Cumulative 235.1 hours Start 2020.09.12 @ 18:04:12 End 2020.09.12 @ 18:23:45 Sessions 1 Manual Loads 0 Difficulty Rogue Special Mode None Game No. 252 Rogue 252 Adventurer 0 Explorer 0 Win Type - Total 12 Types 8/0/3/1/0/0/0/0/0 Lore% 76 Gallery% 87 Achievement% 67 Wizard Run 0 Options --------- ASCII 0 Keyboard 1 Movement Numpad Keybinds 0 Fullscreen 1 Font 20/SmallcapsGlow Map View 66x50 Tactical HUD 1 Map Filters NONE Filters NONE Steam 1 RUN: edf54086-eff0-4b4f-a222-01e3c69e22d0